fUST/lending_fUST_20250611
["ID","MTS","AMOUNT","RATE_DAILY","PERIOD"]
[365332992,1749604245702,-153.0,0.00022962,2]
[365332994,1749604245711,-153.0,0.00022962,2]
[365332996,1749604245722,-153.0,0.00022962,2]
[365332998,1749604245731,-153.0,0.00022962,2]
[365333000,1749604245741,-153.0,0.00022962,2]
[365333002,1749604245750,-153.0,0.00022962,2]
[365333004,1749604245759,-153.0,0.00022962,2]
[365333006,1749604245769,-153.0,0.00022962,2]
[365333008,1749604245778,-153.0,0.00022962,2]
[365333010,1749604245788,-153.0,0.00022962,2]
[365333012,1749604245797,-153.0,0.00022962,2]
[365333014,1749604245807,-153.0,0.00022962,2]
[365333016,1749604245816,-153.0,0.00022962,2]
[365333018,1749604245826,-153.0,0.00022962,2]
[365333020,1749604245835,-153.0,0.00022962,2]
[365333022,1749604245844,-153.0,0.00022962,2]
[365333024,1749604245854,-153.0,0.00022962,2]
[365333026,1749604245867,-153.0,0.00022962,2]
[365333028,1749604245876,-153.0,0.00022962,2]
[365333030,1749604245886,-153.0,0.00022962,2]
[365333032,1749604245895,-153.0,0.00022962,2]
[365333034,1749604245906,-153.0,0.00022962,2]
[365333036,1749604245915,-153.0,0.00022962,2]
[365333038,1749604245924,-153.0,0.00022962,2]
[365333040,1749604245934,-153.0,0.00022962,2]
[365333042,1749604245943,-153.0,0.00022962,2]
[365333044,1749604245953,-153.0,0.00022962,2]
[365333046,1749604245963,-153.0,0.00022962,2]
[365333048,1749604245973,-2078.82461537,0.00022968,2]
[365333050,1749604245982,-173.0,0.00023,5]
[365333052,1749604245992,-173.0,0.00023,5]
[365333054,1749604246001,-173.0,0.00023,5]
[365333056,1749604246010,-175.47485441,0.00023,5]
[365333058,1749604246019,-353.08,0.00023013,4]
[365333060,1749604246029,-460.0,0.00023013,4]
[365333062,1749604246038,-210.0,0.00023013,4]
[365333064,1749604246048,-180.0,0.00023013,4]
[365333066,1749604246057,-460.0,0.00023013,4]
[365333069,1749604246066,-460.0,0.00023013,4]
[365333071,1749604246075,-151.0,0.00023013,7]
[365333073,1749604246084,-151.0,0.00023013,7]
[365333075,1749604246094,-460.0,0.00023013,4]
[365333077,1749604246103,-151.0,0.00023013,7]
[365333079,1749604246112,-1316.41,0.00023013,4]
[365333081,1749604246121,-190.0,0.00023013,4]
[365333083,1749604246130,-460.0,0.00023013,4]
[365333085,1749604246139,-460.0,0.00023013,4]
[365333087,1749604246148,-378.21125641,0.00023013,4]
[365333089,1749604246158,-460.0,0.00023013,4]
[365333091,1749604246167,-460.0,0.00023013,4]
[365333093,1749604246177,-3287.54,0.00023013,4]
[365333095,1749604246186,-460.0,0.00023013,4]
[365333097,1749604246196,-460.0,0.00023013,4]
[365333099,1749604246205,-460.0,0.00023013,4]
[365333101,1749604246214,-460.0,0.00023013,4]
[365333103,1749604246223,-853.23,0.00023013,4]
[365333105,1749604246232,-460.0,0.00023013,4]
[365333107,1749604246241,-1506.51,0.00023013,4]
[365333109,1749604246250,-460.0,0.00023013,4]
[365333111,1749604246261,-460.0,0.00023013,4]
[365333113,1749604246270,-460.0,0.00023013,4]
[365333115,1749604246279,-699.19,0.00023013,4]
[365333117,1749604246289,-578.08,0.00023013,4]
[365333119,1749604246298,-460.0,0.00023013,4]
[365333121,1749604246307,-460.0,0.00023013,4]
[365333123,1749604246316,-460.0,0.00023013,4]
[365333125,1749604246325,-460.0,0.00023013,4]
[365333127,1749604246335,-460.0,0.00023013,4]
[365333129,1749604246344,-460.0,0.00023013,4]
[365333131,1749604246354,-460.0,0.00023013,4]
[365333133,1749604246363,-3493.75,0.00023013,4]
[365333135,1749604246373,-453.56448384,0.00023013,4]
[365333137,1749604246382,-460.0,0.00023013,4]
[365333139,1749604246391,-634.33,0.00023013,4]
[365333141,1749604246400,-757.39,0.00023013,4]
[365333143,1749604246410,-1386.6,0.00023013,4]
[365333145,1749604246420,-1629.77,0.00023013,4]
[365333147,1749604246429,-460.0,0.00023013,4]
[365333149,1749604246439,-460.0,0.00023013,4]
[365333151,1749604246448,-460.0,0.00023013,4]
[365333153,1749604246458,-1458.59,0.00023013,4]
[365333155,1749604246466,-460.0,0.00023013,4]
[365333157,1749604246476,-460.0,0.00023013,2]
[365333159,1749604246485,-460.0,0.00023013,4]
[365333161,1749604246494,-460.0,0.00023013,4]
[365333163,1749604246503,-460.0,0.00023013,4]
[365333172,1749604246587,-2065.67,0.00023013,4]
[365333174,1749604246599,-1381.68,0.00023013,4]
[365333176,1749604246608,-460.0,0.00023013,4]
[365333178,1749604246618,-2924.39,0.00023013,4]
[365333180,1749604246628,-460.0,0.00023013,4]
[365333182,1749604246638,-3153.75,0.00023013,4]
[365333184,1749604246647,-708.66,0.00023013,4]
[365333186,1749604246657,-460.0,0.00023013,4]
[365333188,1749604246666,-853.41,0.00023013,4]
[365333190,1749604246676,-1263.11,0.00023013,4]
[365333192,1749604246685,-460.0,0.00023013,4]
[365333194,1749604246694,-460.0,0.00023013,4]
[365333196,1749604246704,-460.0,0.00023013,4]
[365333198,1749604246713,-460.0,0.00023013,4]
[365333199,1749604246722,-460.0,0.00023013,4]
[365333201,1749604246733,-458.87271069,0.00023013,4]
[365333203,1749604246742,-1749.41132836,0.00023016,2]
[365333205,1749604246752,-1000.0,0.00023016,2]
[365333207,1749604246763,-1500.0,0.00023068,2]
[365333209,1749604246774,-1800.0,0.00023068,2]
[365333211,1749604246784,-1000.0,0.00023068,2]
[365333213,1749604246794,-1500.0,0.00023068,2]
[365333215,1749604246804,-1000.0,0.00023068,2]
[365333217,1749604246814,-151.0,0.000231,5]
[365333219,1749604246824,-151.0,0.00023148,7]
[365333221,1749604246834,-151.0,0.00023148,7]
[365333223,1749604246843,-167.70861884,0.00023187,2]
[365333225,1749604246853,-260.95645424,0.00023195,2]
[365333227,1749604246862,-54711.3,0.000232,7]
[365333229,1749604246872,-693.685656,0.000232,7]
[365333231,1749604246881,-693.685656,0.000232,7]
[365333233,1749604246891,-842.5625,0.000232,7]
[365333235,1749604246901,-151.0,0.000232,7]
[365333237,1749604246911,-151.0,0.000232,7]
[365333239,1749604246921,-151.0,0.000232,7]
[365333241,1749604246931,-151.0,0.00023204,7]
[365333242,1749604246941,-151.0,0.00023204,7]
[365333244,1749604246951,-151.0,0.00023204,7]
[365333246,1749604246960,-151.0,0.00023204,7]
[365333248,1749604246969,-151.0,0.00023204,7]
[365333250,1749604246979,-460.495953,0.00023204,7]
[365333252,1749604246988,-460.495953,0.00023204,7]
[365333254,1749604246998,-151.0,0.00023204,7]
[365333256,1749604247008,-151.0,0.00023204,2]
[365333258,1749604247017,-5000.0,0.00023204,2]
[365333260,1749604247027,-207.4,0.00023204,2]
[365333262,1749604247037,-160.02203713,0.00023204,2]
[365333264,1749604247046,-1688.0,0.00023204,2]
[365333266,1749604247056,-1500.0,0.00023204,2]
[365333268,1749604247065,-1500.0,0.00023204,2]
[365333270,1749604247075,-2500.0,0.00023204,2]
[365333272,1749604247084,-1500.0,0.00023204,2]
[365333274,1749604247094,-2500.0,0.00023204,2]
[365333276,1749604247103,-1500.0,0.00023204,2]
[365333278,1749604247112,-2500.0,0.00023204,2]
[365333280,1749604247122,-1500.0,0.00023204,2]
[365333282,1749604247131,-2500.0,0.00023204,2]
[365333284,1749604247140,-1500.0,0.00023204,2]
[365333286,1749604247149,-2500.0,0.00023204,2]
[365333288,1749604247160,-1500.0,0.00023204,2]
[365333290,1749604247169,-1500.0,0.00023204,2]
[365333292,1749604247178,-2500.0,0.00023204,2]
[365333294,1749604247187,-1317.3030559,0.00023204,2]
[365333296,1749604247197,-1500.0,0.00023204,2]
[365333298,1749604247206,-2500.0,0.00023204,2]
[365333300,1749604247217,-1500.0,0.00023204,2]
[365333302,1749604247226,-1500.0,0.00023204,2]
[365333304,1749604247236,-1323.54423715,0.00023204,2]
[365333306,1749604247246,-1500.0,0.00023204,2]
[365333308,1749604247255,-1500.0,0.00023204,2]
[365333310,1749604247264,-431.86117909,0.00023204,2]
[365333312,1749604247273,-700.0,0.00023256,2]
[365333314,1749604247281,-500.0,0.00023273,2]
[365333316,1749604247290,-151.0,0.00023286,7]
[365333318,1749604247299,-151.0,0.00023287,7]
[365333320,1749604247308,-460.0,0.00023287,4]
[365333322,1749604247317,-151.0,0.00023287,7]
[365333324,1749604247327,-151.0,0.00023287,7]
[365333326,1749604247336,-151.0,0.00023287,7]
[365333327,1749604247347,-460.0,0.00023287,4]
[365333329,1749604247356,-460.0,0.00023287,4]
[365333331,1749604247366,-460.0,0.00023287,4]
[365333333,1749604247375,-1316.41,0.00023287,4]
[365333335,1749604247385,-460.0,0.00023287,4]
[365333337,1749604247394,-460.0,0.00023287,4]
[365333339,1749604247404,-460.0,0.00023287,4]
[365333341,1749604247414,-190.0,0.00023287,4]
[365333343,1749604247423,-3287.54,0.00023287,4]
[365333345,1749604247433,-460.0,0.00023287,4]
[365333347,1749604247442,-460.0,0.00023287,4]
[365333349,1749604247451,-2396.208569,0.00023287,2]
[365333351,1749604247460,-2396.208569,0.00023287,2]
[365333353,1749604247469,-460.0,0.00023287,4]
[365333355,1749604247478,-460.0,0.00023287,4]
[365333357,1749604247487,-853.23,0.00023287,4]
[365333359,1749604247497,-460.0,0.00023287,4]
[365333360,1749604247506,-1506.51,0.00023287,4]
[365333362,1749604247516,-460.0,0.00023287,4]
[365333364,1749604247529,-460.0,0.00023287,4]
[365333366,1749604247539,-460.0,0.00023287,4]
[365333368,1749604247549,-699.19,0.00023287,4]
[365333370,1749604247559,-578.08,0.00023287,4]
[365333372,1749604247569,-460.0,0.00023287,4]
[365333374,1749604247579,-460.0,0.00023287,4]
[365333376,1749604247589,-460.0,0.00023287,4]
[365333378,1749604247599,-151.0,0.00023287,7]
[365333380,1749604247608,-460.0,0.00023287,4]
[365333382,1749604247618,-460.0,0.00023287,4]
[365333384,1749604247628,-460.0,0.00023287,4]
[365333386,1749604247638,-460.0,0.00023287,4]
[365333388,1749604247647,-3493.75,0.00023287,4]
[365333390,1749604247656,-460.0,0.00023287,4]
[365333392,1749604247665,-634.33,0.00023287,4]
[365333393,1749604247675,-757.39,0.00023287,4]
[365333395,1749604247684,-1386.6,0.00023287,4]
[365333397,1749604247695,-1629.77,0.00023287,4]
[365333399,1749604247704,-460.0,0.00023287,4]
[365333401,1749604247714,-460.0,0.00023287,4]
[365333403,1749604247722,-460.0,0.00023287,4]
[365333405,1749604247729,-1458.59,0.00023287,4]
[365333407,1749604247739,-460.0,0.00023287,4]
[365333409,1749604247748,-460.0,0.00023287,2]
[365333411,1749604247757,-460.0,0.00023287,4]
[365333413,1749604247766,-460.0,0.00023287,4]
[365333415,1749604247775,-460.0,0.00023287,4]
[365333417,1749604247784,-2065.67,0.00023287,4]
[365333418,1749604247794,-1381.68,0.00023287,4]
[365333420,1749604247803,-460.0,0.00023287,4]
[365333422,1749604247812,-2924.39,0.00023287,4]
[365333424,1749604247822,-460.0,0.00023287,4]
[365333426,1749604247831,-3153.75,0.00023287,4]
[365333428,1749604247841,-708.66,0.00023287,4]
[365333430,1749604247850,-460.0,0.00023287,4]
[365333432,1749604247860,-853.41,0.00023287,4]
[365333434,1749604247869,-1263.11,0.00023287,4]
[365333436,1749604247878,-460.0,0.00023287,4]
[365333438,1749604247887,-460.0,0.00023287,4]
[365333440,1749604247896,-190.0,0.00023287,4]
[365333442,1749604247906,-460.0,0.00023287,4]
[365333444,1749604247916,-460.0,0.00023287,4]
[365333446,1749604247925,-153.0,0.00023288,2]
[365333448,1749604247934,-158.7504224,0.00023288,2]
[365333450,1749604247943,-176.8341807,0.00023288,2]
[365333452,1749604247952,-306.0,0.00023288,2]
[365333454,1749604247961,-158.7504224,0.00023288,2]
[365333456,1749604247971,-1146.7080698,0.00023288,2]
[365333458,1749604247980,-317.5008448,0.00023288,2]
[365333460,1749604247989,-153.0,0.00023288,2]
[365333461,1749604247998,-176.8341807,0.00023288,2]
[365333463,1749604248008,-573.3540349,0.00023288,2]
[365333465,1749604248017,-153.0,0.00023288,2]
[365333475,1749604248098,-176.8341807,0.00023288,2]
[365333477,1749604248108,-1146.7080698,0.00023288,2]
[365333479,1749604248117,-153.0,0.00023288,2]
[365333481,1749604248127,-353.6683614,0.00023288,2]
[365333483,1749604248137,-317.5008448,0.00023288,2]
[365333484,1749604248147,-573.3540349,0.00023288,2]
[365333486,1749604248157,-153.0,0.00023288,2]
[365333488,1749604248167,-158.7504224,0.00023288,2]
[365333490,1749604248177,-573.3540349,0.00023288,2]
[365333492,1749604248186,-176.8341807,0.00023288,2]
[365333494,1749604248195,-158.7504224,0.00023288,2]
[365333496,1749604248204,-153.0,0.00023288,2]
[365333498,1749604248214,-153.0,0.00023288,2]
[365333500,1749604248223,-1146.7080698,0.00023288,2]
[365333502,1749604248233,-176.8341807,0.00023288,2]
[365333504,1749604248244,-573.3540349,0.00023288,2]
[365333506,1749604248254,-176.8341807,0.00023288,2]
[365333508,1749604248264,-158.7504224,0.00023288,2]
[365333509,1749604248273,-159.5513002,0.00023288,2]
[365333510,1749604248282,-317.5008448,0.00023288,2]
[365333511,1749604248292,-353.6683614,0.00023288,2]
[365333512,1749604248301,-570.1720743,0.00023288,2]
[365333513,1749604248311,-153.0,0.00023288,2]
[365333514,1749604248320,-157.3008357,0.00023288,2]
[365333515,1749604248330,-153.0,0.00023288,2]
[365333516,1749604248339,-174.1714265,0.00023288,2]
[365333517,1749604248349,-317.5008448,0.00023288,2]
[365333518,1749604248358,-153.0,0.00023288,2]
[365333519,1749604248368,-573.3540349,0.00023288,2]
[365333520,1749604248377,-573.3540349,0.00023288,2]
[365333521,1749604248386,-573.3540349,0.00023288,2]
[365333522,1749604248396,-353.6683614,0.00023288,2]
[365333523,1749604248405,-369.03429,0.00023288,2]
[365333524,1749604248417,-153.0,0.00023288,2]
[365333525,1749604248427,-311.3791089,0.00023288,2]
[365333526,1749604248436,-3165.67,0.00023296,2]
[365333527,1749604248446,-45805.59,0.000233,2]
[365333528,1749604248456,-151.0,0.000233,7]
[365333529,1749604248466,-156.365003,0.000233,7]
[365333530,1749604248476,-25260.90195305,0.000234,7]
[365333531,1749604248485,-25260.90195305,0.000234,7]
[365333532,1749604248494,-3000.0,0.000234,2]
[365333533,1749604248504,-151.0,0.000234,7]
[365333534,1749604248514,-151.0,0.000234,7]
[365333535,1749604248526,-151.0,0.000234,7]
[365333536,1749604248536,-151.0,0.000234,7]
[365333537,1749604248545,-154.484211,0.000234,7]
[365333538,1749604248555,-3000.0,0.0002341,2]
[365333539,1749604248567,-693.685656,0.0002341,7]
[365333540,1749604248577,-693.685656,0.0002341,7]
[365333541,1749604248587,-3000.0,0.0002342,2]
[365333542,1749604248598,-3000.0,0.0002343,2]
[365333543,1749604248609,-3000.0,0.0002344,2]
[365333544,1749604248619,-3000.0,0.0002345,2]
[365333545,1749604248629,-151.0,0.0002345,7]
[365333546,1749604248639,-460.495953,0.0002345,7]
[365333547,1749604248649,-460.495953,0.0002345,7]
[365333548,1749604248659,-151.0,0.0002345,7]
[365333549,1749604248670,-3000.0,0.0002346,2]
[365333550,1749604248679,-3000.0,0.0002347,2]
[365333551,1749604248689,-3000.0,0.0002348,2]
[365333552,1749604248699,-151.0,0.0002348,7]
[365333553,1749604248710,-3000.0,0.0002349,2]
[365333554,1749604248720,-151.0,0.0002349,7]
[365333555,1749604248730,-151.0,0.0002349,7]
[365333556,1749604248740,-151.0,0.0002349,7]
[365333557,1749604248749,-151.0,0.0002349,7]
[365333558,1749604248759,-151.0,0.0002349,7]
[365333559,1749604248769,-151.0,0.0002349,7]
[365333560,1749604248779,-151.0,0.0002349,7]
[365333561,1749604248789,-151.0,0.0002349,7]
[365333563,1749604248798,-357.900001,0.0002349,7]
[365333565,1749604248808,-357.900001,0.0002349,7]
[365333567,1749604248818,-151.0,0.0002349,7]
[365333569,1749604248828,-3000.0,0.000235,2]
[365333571,1749604248837,-160.0,0.000235,3]
[365333573,1749604248846,-213.1263252,0.000235,3]
[365333575,1749604248856,-160.0,0.000235,3]
[365333577,1749604248866,-842.5625,0.000235,3]
[365333579,1749604248876,-11858.11761888,0.000235,3]
[365333581,1749604248887,-160.0,0.000235,3]
[365333583,1749604248896,-229.6792923,0.000235,3]
[365333585,1749604248908,-160.0,0.000235,3]
[365333587,1749604248918,-424.12530924,0.000235,3]
[365333589,1749604248928,-160.0,0.000235,3]
[365333591,1749604248937,-834.9046531,0.000235,3]
[365333593,1749604248948,-160.0,0.000235,3]
[365333595,1749604248957,-3000.0,0.0002351,2]
[365333597,1749604248966,-151.0,0.0002351,7]
[365333599,1749604248976,-151.0,0.0002351,7]
[365333601,1749604248985,-151.0,0.0002351,7]
[365333603,1749604248995,-3000.0,0.0002352,2]
[365333605,1749604249004,-3000.0,0.0002353,2]
[365333606,1749604249014,-278.198717,0.0002353,7]
[365333609,1749604249024,-151.0,0.0002353,7]
[365333610,1749604249033,-151.0,0.0002353,7]
[365333612,1749604249043,-3000.0,0.0002354,2]
[365333614,1749604249052,-3000.0,0.0002355,2]
[365333617,1749604249062,-3000.0,0.0002356,2]
[365333618,1749604249072,-460.0,0.00023561,4]
[365333620,1749604249081,-460.0,0.00023561,4]
[365333623,1749604249091,-460.0,0.00023561,4]
[365333625,1749604249101,-1316.41,0.00023561,4]
[365333626,1749604249110,-460.0,0.00023561,4]
[365333628,1749604249119,-460.0,0.00023561,4]
[365333630,1749604249129,-460.0,0.00023561,4]
[365333632,1749604249139,-3287.54,0.00023561,4]
[365333634,1749604249149,-276.471907,0.00023561,4]
[365333636,1749604249160,-2396.208569,0.00023561,2]
[365333638,1749604249170,-2396.208569,0.00023561,2]
[365333640,1749604249179,-460.0,0.00023561,4]
[365333642,1749604249189,-460.0,0.00023561,4]
[365333644,1749604249198,-853.23,0.00023561,4]
[365333646,1749604249207,-460.0,0.00023561,4]
[365333648,1749604249218,-1506.51,0.00023561,4]
[365333650,1749604249227,-460.0,0.00023561,4]
[365333652,1749604249237,-590.0,0.00023561,4]
[365333654,1749604249247,-590.0,0.00023561,4]
[365333656,1749604249259,-699.19,0.00023561,4]
[365333658,1749604249268,-578.08,0.00023561,4]
[365333660,1749604249277,-460.0,0.00023561,4]
[365333662,1749604249286,-460.0,0.00023561,4]
[365333664,1749604249296,-460.0,0.00023561,4]
[365333666,1749604249305,-151.0,0.00023561,7]
[365333668,1749604249315,-460.0,0.00023561,4]
[365333670,1749604249325,-460.0,0.00023561,4]
[365333672,1749604249335,-460.0,0.00023561,4]
[365333674,1749604249345,-590.0,0.00023561,4]
[365333676,1749604249354,-3493.75,0.00023561,4]
[365333678,1749604249364,-460.0,0.00023561,4]
[365333680,1749604249374,-634.33,0.00023561,4]
[365333682,1749604249384,-757.39,0.00023561,4]
[365333684,1749604249393,-1386.6,0.00023561,4]
[365333686,1749604249403,-1629.77,0.00023561,4]
[365333688,1749604249414,-590.0,0.00023561,4]
[365333690,1749604249424,-460.0,0.00023561,4]
[365333692,1749604249433,-1458.59,0.00023561,4]
[365333694,1749604249442,-160.0,0.00023561,4]
[365333703,1749604249521,-460.0,0.00023561,2]
[365333705,1749604249531,-460.0,0.00023561,4]
[365333707,1749604249540,-160.0,0.00023561,4]
[365333709,1749604249549,-460.0,0.00023561,4]
[365333711,1749604249559,-2065.67,0.00023561,4]
[365333713,1749604249568,-1381.68,0.00023561,4]
[365333715,1749604249578,-460.0,0.00023561,4]
[365333717,1749604249587,-2924.39,0.00023561,4]
[365333719,1749604249599,-590.0,0.00023561,4]
[365333721,1749604249609,-3153.75,0.00023561,4]
[365333723,1749604249618,-708.66,0.00023561,4]
[365333725,1749604249628,-853.41,0.00023561,4]
[365333727,1749604249637,-1263.11,0.00023561,4]
[365333729,1749604249646,-460.0,0.00023561,4]
[365333731,1749604249656,-460.0,0.00023561,4]
[365333733,1749604249665,-460.0,0.00023561,4]
[365333735,1749604249674,-460.0,0.00023561,4]
[365333737,1749604249684,-3000.0,0.0002357,2]
[365333739,1749604249693,-3000.0,0.0002358,2]
[365333741,1749604249702,-3000.0,0.0002359,2]
[365333743,1749604249711,-151.0,0.000236,5]
[365333745,1749604249720,-3000.0,0.000236,2]
[365333747,1749604249729,-3000.0,0.0002361,2]
[365333749,1749604249739,-1500.0,0.00023616,2]
[365333751,1749604249748,-2400.0,0.00023616,2]
[365333753,1749604249757,-2000.0,0.00023616,2]
[365333755,1749604249766,-3000.0,0.0002362,2]
[365333757,1749604249775,-87544.97,0.00023621,11]
[365333759,1749604249784,-3000.0,0.0002363,2]
[365333761,1749604249793,-3000.0,0.0002364,2]
[365333763,1749604249802,-3000.0,0.0002365,2]
[365333765,1749604249811,-265.491957,0.0002365,7]
[365333767,1749604249821,-151.0,0.0002365,7]
[365333769,1749604249830,-151.0,0.0002365,7]
[365333771,1749604249839,-3000.0,0.0002366,2]
[365333773,1749604249848,-3000.0,0.0002367,2]
[365333775,1749604249857,-3000.0,0.0002368,2]
[365333777,1749604249865,-587.0,0.00023687,2]
[365333779,1749604249875,-3000.0,0.0002369,2]
[365333781,1749604249883,-162.70720017,0.00023699,2]
[365333783,1749604249893,-151.0,0.00023699,7]
[365333785,1749604249901,-151.0,0.00023699,7]
[365333787,1749604249912,-151.0,0.00023699,7]
[365333789,1749604249920,-151.0,0.00023699,7]
[365333791,1749604249930,-151.0,0.00023699,7]
[365333793,1749604249940,-200.792094,0.00023699,7]
[365333795,1749604249949,-151.0,0.00023699,7]
[365333797,1749604249958,-357.900001,0.00023699,7]
[365333799,1749604249967,-357.900001,0.00023699,7]
[365333801,1749604249976,-151.0,0.00023699,7]
[365333803,1749604249985,-3000.0,0.000237,2]
[365333805,1749604249993,-213.266705,0.000237,7]
[365333807,1749604250002,-3000.0,0.0002371,2]
[365333809,1749604250011,-3000.0,0.0002372,2]
[365333811,1749604250020,-3000.0,0.0002373,2]
[365333813,1749604250029,-3000.0,0.0002374,2]
[365333815,1749604250038,-3000.0,0.0002375,2]
[365333816,1749604250047,-151.0,0.00023752,7]
[365333818,1749604250056,-151.0,0.00023752,2]
[365333820,1749604250065,-4743.29961771,0.00023752,2]
[365333825,1749604250115,-256.70038229,0.00023752,2]
[365333827,1749604250124,-260.95645424,0.00023753,2]
[365333829,1749604250134,-46.91990769,0.0002376,2]
[365333830,1749604250144,-366.52949069,0.0002376,2]
[365333832,1749604250155,-2316.4010149,0.0002376,2]
[365333899,1749604250962,-160.0,0.00018103,2]
[365333901,1749604250972,-460.0,0.00021095,4]
[365333902,1749604250981,-460.0,0.00021095,4]
[365333904,1749604250990,-460.0,0.00021095,4]
[365333906,1749604251000,-500.0,0.00021368,2]
[365333908,1749604251008,-76.14064329,0.00021368,2]
[365333910,1749604251027,-892.47082374,0.00021368,2]
[365333912,1749604251038,-764.45312616,0.00021368,2]
[365333914,1749604251047,-1733.06459319,0.00021368,2]
[365333916,1749604251056,-495.82737227,0.00021368,2]
[365333918,1749604251067,-4.17262773,0.00021368,2]
[365333919,1749604251075,-1733.06459319,0.00021368,2]
[365333921,1749604251085,-1733.06459319,0.00021368,2]
[365333923,1749604251095,-500.0,0.00021368,2]
[365333925,1749604251104,-1733.06459319,0.00021368,2]
[365333926,1749604251113,-1071.14415132,0.00021368,2]
[365333928,1749604251125,-661.92044187,0.00021368,2]
[365333930,1749604251134,-500.0,0.00021368,2]
[365333932,1749604251144,-1733.06459319,0.00021368,2]
[365333934,1749604251154,-627.6763345,0.00021368,2]
[365333936,1749604251167,-1105.38825869,0.00021368,2]
[365333938,1749604251177,-500.0,0.00021368,2]
[365333939,1749604251186,-1733.06459319,0.00021368,2]
[365333941,1749604251195,-354.45334214,0.00021368,2]
[365333943,1749604251204,-1733.06459319,0.00021368,2]
[365333945,1749604251213,-1733.06459319,0.00021368,2]
[365333947,1749604251222,-1733.06459319,0.00021368,2]
[365333948,1749604251232,-1733.06459319,0.00021368,2]
[365333950,1749604251241,-1733.06459319,0.00021368,2]
[365333952,1749604251250,-1733.06459319,0.00021368,2]
[365333954,1749604251259,-1733.06459319,0.00021368,2]
[365333956,1749604251269,-1733.06459319,0.00021368,2]
[365333957,1749604251278,-1733.06459319,0.00021368,2]
[365333959,1749604251287,-1733.06459319,0.00021368,2]
[365333961,1749604251296,-341.08,0.00021369,4]
[365333963,1749604251306,-460.0,0.00021369,4]
[365333965,1749604251316,-460.0,0.00021643,4]
[365333966,1749604251325,-460.0,0.00021917,4]
[365333968,1749604251334,-199.0,0.00022,2]
[365333970,1749604251344,-460.0,0.00022465,4]
[365333972,1749604251354,-151.0,0.00022739,7]
[365333974,1749604251362,-460.0,0.00022739,4]
[365333975,1749604251372,-460.0,0.00023013,4]
[365333977,1749604251381,-151.0,0.000232,7]
[365333979,1749604251390,-200.0,0.00023287,4]
[365333981,1749604251400,-151.0,0.000234,7]
[365333982,1749604251410,-151.0,0.0002373,7]
[365333984,1749604251420,-270.14958672,0.0002376,2]
[365333986,1749604251430,-3000.0,0.0002377,2]
[365333988,1749604251440,-3000.0,0.0002378,2]
[365333990,1749604251449,-3000.0,0.0002379,2]
[365333992,1749604251459,-151.0,0.000238,5]
[365333994,1749604251469,-3000.0,0.000238,2]
[365333995,1749604251478,-151.0,0.000238,7]
[365333997,1749604251487,-3000.0,0.0002381,2]
[365333999,1749604251496,-3000.0,0.0002382,2]
[365334001,1749604251506,-3000.0,0.0002383,2]
[365334003,1749604251515,-693.685656,0.0002383,7]
[365334004,1749604251527,-693.685656,0.0002383,7]
[365334006,1749604251536,-305.36,0.00023834,2]